[Event "88th Tata Steel Masters 2026"]
[White "Van Foreest,Jorden"]
[Black "Bluebaum,Matthias"]
[Site "Wijk aan Zee"]
[Round "5.5"]
[Annotator "TA"]
[Result "1/2-1/2"]
[Date "2026.01.21"]
[WhiteElo "2703"]
[BlackElo "2679"]
[PlyCount "147"]
[TimeControl "60"]

{[%evp 12,147,25,0,0,0,17,2,41,34,37,43,52,8,32,0,31,20,20,13,16,15,16,13,13,14,24,12,27,20,22,18,80,80,80,85,85,78,78,78,78,78,79,80,80,72,72,72,72,72,72,72,72,72,72,72,72,0,72,72,72,72,72,68,68,68,68,68,68,68,69,69,73,79,79,50,50,50,50,50,73,53,53,53,74,74,74,74,74,74,74,74,74,0,74,74,74,74,74,74,74,74,83,96,93,97,99,104,104,81,81,81,81,81,81,0,81,0,0,0,0,0,61,61,61,61,61,61,61,61,61,61,61,12,61,61,61,0]} 1. e4 {[%emt 0:0:0]} e5 {[%emt 0:0:0]} 2. Nf3 {[%emt 0:0:0]} Nf6 {[%emt 0:0:0]} 3. d4 {[%emt 0:0:0]} Nxe4 {[%emt 0:0:0]} 4. Bd3 {[%emt 0:0:0]} d5 {[%emt 0:0:0]} 5. Nxe5 {[%emt 0:0:0]} Nd7 {[%emt 0:0:0]} 6. Nxd7 {[%emt 0:0:0]} Bxd7 {[%emt 0:0:0]} 7. Nd2 {[%emt 0:0:0]} Nxd2 {[%emt 0:0:0] C43: Petroff Defence: 3 d4.} 8. Bxd2 {[%emt 0:0:0]} Qe7+ {[%emt 0:0:0]} 9. Kf1 {[%emt 0:0:0]} Qh4 $146 {[%emt 0:0:0] The position is equal.} ({Predecessor:} 9... O-O-O 10. c3 Qf6 11. h4 Qb6 12. Qb3 Qxb3 13. axb3 a6 14. Ra5 Be6 15. h5 h6 {0-1 Vardanyan,A (2285)-Solodovnichenko,Y (2520) Sitges op 47th 2023 (9)} )10. Qe2+ {[%emt 0:0:0]} Be7 {[%emt 0:3:10]} 11. Re1 {[%emt 0:13:12]} Be6 {[%emt 0:2:22]} 12. c3 {[%emt 0:1:0]} O-O-O {[%emt 0:8:45]} 13. h3 {[%emt 0:6:22]} Qf6 {[%emt 0:9:30]} 14. h4 {[%emt 0:3:51]} h6 {[%emt 0:1:14] Dodges Bg5} 15. Qe5 {[%emt 0:0:58]} Qxe5 {[%emt 0:3:16]} 16. Rxe5 {[%emt 0:0:36]} Bd6 {[%emt 0:3:34]} 17. Re1 {[%emt 0:0:35]} h5 {[%emt 0:3:15]} 18. g3 {[%emt 0:0:38] Not much happening anymore} Rde8 {[%emt 0:0:40]} 19. Kg2 {[%emt 0:0:57]} Bd7 {[%emt 0:1:26]} 20. Bf4 {[%emt 0:0:37]} Rxe1 {[%emt 0:11:15]} 21. Rxe1 {[%emt 0:0:51]} Re8 {[%emt 0:0:46]} (21... Bxf4 $11 22. gxf4 Kd8 )22. Rxe8+ $16 {[%emt 0:1:1]} Bxe8 {[%emt 0:0:35]} 23. Bxd6 {[%emt 0:0:36]} cxd6 {[%emt 0:0:33][%mdl 4096] Endgame KB-KB} 24. Bc2 {[%emt 0:16:2]} Kd8 {[%emt 0:16:59]} 25. Bb3 {[%emt 0:3:58]} Bc6 {[%emt 0:2:48]} 26. Kf3 {[%emt 0:7:5]} Ke7 {[%emt 0:1:22]} 27. Kf4 {[%emt 0:0:44]} f6 {[%emt 0:1:53]} 28. Kf5 {[%emt 0:9:45]} Kf7 {[%emt 0:1:26]} 29. Bd1 {[%emt 0:1:44]} Bd7+ {[%emt 0:5:23]} 30. Kf4 {[%emt 0:0:45]} Kg6 {[%emt 0:3:32]} 31. Bb3 {[%emt 0:2:59]} Be6 {[%emt 0:4:4]} 32. Ba4 {[%emt 0:2:5]} Kf7 {[%emt 0:1:37]} 33. Bd1 {[%emt 0:2:26]} Kg6 {[%emt 0:8:8]} 34. Ba4 {[%emt 0:0:50]} Kf7 $1 {[%emt 0:0:38]} 35. Bc2 {[%emt 0:0:34]} g6 {[%emt 0:2:23]} 36. Ba4 {[%emt 0:1:55]} Kf8 {[%emt 0:2:15]} 37. f3 {[%emt 0:1:2][%cal Yf2f3,Yf3g4,Yg4g5][%mdl 32]} Kf7 {[%emt 0:4:9]} 38. g4 {[%emt 0:0:46]} hxg4 {[%emt 0:0:48]} 39. fxg4 {[%emt 0:0:37]} Kf8 {[%emt 0:0:58]} 40. g5 {[%emt 0:0:0]} Ke7 {[%emt 0:0:0]} 41. Bd1 {[%emt 0:24:31]} b6 {[%emt 0:22:14]} 42. Bf3 {[%emt 0:0:8]} Bf7 {[%emt 0:0:23]} 43. Ke3 {[%emt 0:1:21]} fxg5 {[%emt 0:1:49]} 44. hxg5 {[%emt 0:0:6]} Kd7 {[%emt 0:2:8]} 45. Kd2 {[%emt 0:0:33]} Kc7 {[%emt 0:0:39]} 46. Be2 {[%emt 0:0:16]} Kb7 {[%emt 0:4:33]} 47. Kc2 {[%emt 0:0:19]} a6 {[%emt 0:3:48]} 48. Kb3 {[%emt 0:1:3]} Be6 {[%emt 0:2:55]} 49. Bd3 {[%emt 0:0:5]} Bf7 {[%emt 0:0:4]} 50. Kb4 {[%emt 0:0:19]} Be8 {[%emt 0:1:6]} 51. Be2 {[%emt 0:0:39]} Bf7 {[%emt 0:0:5]} 52. Bd3 {[%emt 0:3:40]} Be8 $1 {[%emt 0:0:12]} 53. Bf1 {[%emt 0:9:34]} Bf7 {[%emt 0:0:19]} 54. Bh3 {[%emt 0:0:6]} Kc7 {[%emt 0:0:17]} 55. Bg4 {[%emt 0:1:7]} Kb7 {[%emt 0:0:45]} 56. b3 {[%emt 0:0:5]} Kc7 {[%emt 0:3:55]} 57. a4 {[%emt 0:1:23][%cal Ya2a4,Ya4a5][%mdl 32]} Bg8 {[%emt 0:4:57]} 58. Be2 {[%emt 0:1:10]} Kb7 {[%emt 0:0:29]} 59. a5 {[%emt 0:8:30]} b5 {[%emt 0:0:22]} 60. Bd3 {[%emt 0:5:21]} Bf7 {[%emt 0:0:7]} 61. Bb1 {[%emt 0:15:14]} Kc7 {[%emt 0:15:18]} 62. Bc2 {[%emt 0:0:19]} Kc6 {[%emt 0:0:13]} 63. Bb1 {[%emt 0:0:17]} Kc7 $1 {[%emt 0:0:5]} 64. c4 {[%emt 0:0:53]} dxc4 $11 {[%emt 0:0:17]} 65. bxc4 {[%emt 0:0:3]} bxc4 {[%emt 0:0:5]} 66. d5 {[%emt 0:0:4]} Be8 {[%emt 0:0:59]} ({Black should try} 66... Bxd5 $11 67. Bxg6 Be6 )67. Kxc4 $14 {[%emt 0:0:9]} Kb7 {[%emt 0:0:7]} 68. Kd4 {[%emt 0:0:5]} Kc7 {[%emt 0:0:8]} 69. Bd3 {[%emt 0:0:26]} Kb7 {[%emt 0:0:4]} 70. Ke3 {[%emt 0:1:22] White is more active.} Ka7 {[%emt 0:0:8]} 71. Bc2 {[%emt 0:0:12]} Kb7 {[%emt 0:0:3]} 72. Bd1 {[%emt 0:1:18]} (72. Bb1 $14 {is more appropriate.} )Kc7 {[%emt 0:0:26]} (72... Bd7 $11 )73. Be2 {[%emt 0:0:32]} Kb7 {[%emt 0:0:6]} 74. Bd3 {[%emt 0:0:40] Weighted Error Value: White=0.08 (flawless) /Black=0.05 (flawless)   Mistake:       	White=3     	Black=3      Inaccurate:     	White=3     	Black=2      OK:         	White=3     	Black=4      Strong:       	---       	Black=3} ({Better is} 74. Bf3 $14 )1/2-1/2

[Event "88th Tata Steel Masters 2026"]
[White "Erigaisi Arjun"]
[Black "Fedoseev,Vladimir"]
[Site "Wijk aan Zee"]
[Round "5.6"]
[Annotator "TA"]
[Result "0-1"]
[Date "2026.01.21"]
[WhiteElo "2775"]
[BlackElo "2705"]
[PlyCount "92"]
[TimeControl "60"]

{[%evp 9,92,20,17,22,23,20,35,37,111,114,116,106,131,88,84,88,98,67,76,66,96,0,0,0,0,0,34,0,0,0,27,16,14,8,8,12,12,7,11,0,0,0,8,10,20,0,7,29,62,-19,0,-403,-397,-394,-404,-392,-406,-383,-370,-471,-492,-479,-483,-492,-481,-501,-488,-500,-497,-498,-502,-473,-428,-542,-557,-562,-558,-558,-548,-553,-545,-562,-512,-545,-548]} 1. d4 {[%emt 0:0:0]} Nf6 {[%emt 0:0:0]} 2. c4 {[%emt 0:0:0]} e6 {[%emt 0:0:0]} 3. Nf3 {[%emt 0:0:0][%cal Yg1f3,Yf3d4,Yd4b5][%mdl 32]} d5 {[%emt 0:0:0]} 4. Nc3 {[%emt 0:0:0]} Bb4 {[%emt 0:0:0]} 5. Qb3 {[%emt 0:0:0]} c5 {[%emt 0:0:0]} 6. Bg5 {[%emt 0:0:0] D38: Queen's Gambit Declined: Ragozin Defence (4 Nf3 Bb4).} cxd4 $5 {[%emt 0:2:22][%mdl 4] A promising side line.} 7. Nxd4 {[%emt 0:0:0]} Bxc3+ {[%emt 0:1:26]} 8. Qxc3 {[%emt 0:0:0] White is slightly better.} e5 $146 {[%emt 0:1:5]} (8... O-O $14 )({Predecessor:} 8... h6 9. Bxf6 Qxf6 10. cxd5 O-O 11. dxe6 fxe6 12. Nf3 Qf5 13. g3 Nc6 14. Bg2 e5 {1-0 Motuz,K (2377)-Spik,P (2124) Tatry op Tatranske Zruby 2002 (8)} )9. Nb5 $16 {[%emt 0:0:0]} (9. Bxf6 $6 gxf6 10. Nc2 Be6 $11 )O-O {[%emt 0:5:55]} 10. cxd5 {[%emt 0:35:12]} Na6 {[%emt 0:4:6][%cal Yb8a6,Ya6c5,Yc5d7,Yd7f6][%mdl 32] Dodges Nc7} 11. Bxf6 {[%emt 0:0:0]} (11. Qxe5 $6 Qa5+ 12. Nc3 Re8 $11 )Qxf6 {[%emt 0:1:43]} 12. e4 {[%emt 0:3:19] Inhibits Bf5.} Bd7 {[%emt 0:3:41]} 13. Qd2 {[%emt 0:0:0]} Nc5 {[%emt 0:7:22]} 14. Nc3 {[%emt 0:0:0]} Rac8 {[%emt 0:1:42] [#]} 15. Rd1 {[%emt 0:8:58]} (15. b4 $1 $16 {[%cal Rb4c5]} Na6 (15... Na4 16. Nxa4 Bxa4 17. Bd3 $16 )16. a3 )Qg6 $1 $11 {[%emt 0:10:19]} 16. f3 {[%emt 0:3:24]} f5 {[%emt 0:5:48]} 17. exf5 {[%emt 0:8:0]} Bxf5 {[%emt 0:13:30]} 18. b4 {[%emt 0:1:0]} Nd7 {[%emt 0:2:31]} 19. Bb5 {[%emt 0:2:33]} Qb6 {[%emt 0:3:14][%cal Yc8c3]} 20. a4 {[%emt 0:1:41][%cal Ya2a4,Ya4a5][%mdl 32]} Nf6 {[%emt 0:3:59]} 21. d6 {[%emt 0:3:52]} a6 {[%emt 0:1:51]} 22. a5 {[%emt 0:0:48]} Qa7 {[%emt 0:1:8]} 23. Ba4 {[%emt 0:3:46] [#] Hoping for Nd5.} Kh8 {[%emt 0:2:10]} 24. Rf1 {[%emt 0:3:5]} b5 {[%emt 0:2:16]} 25. Bb3 {[%emt 0:2:53]} Rfd8 {[%emt 0:2:12]} 26. g4 {[%emt 0:12:41][%cal Yg2g4,Yg4g5][%mdl 32]} Bg6 {[%emt 0:0:54]} 27. g5 {[%emt 0:0:42]} Nh5 {[%emt 0:5:5]} 28. Ne2 {[%emt 0:0:36] Prevents Nf4.} Rc6 {[%emt 0:7:12]} 29. Qd5 {[%emt 0:0:41]} (29. d7 $2 Rc7 (29... Bf5 30. Qd5 $11 )30. Qd5 (30. Be6 $2 Rc2 $19 )Rcxd7 $19 (30... Rdxd7 31. Qg8# ))(29. Rc1 $14 Rxc1+ (29... Rdxd6 30. Rxc6 )(29... Rcxd6 $2 30. Qxd6 Qa8 31. Bd5 $18 )30. Qxc1 )Rc3 {[%emt 0:1:26] Dancing on a razor blade.} 30. Ba2 $2 {[%emt 0:7:8][%mdl 8192] Black keeps a firm grip on the game.} (30. Nxc3 $2 {loses.} Qe3+ 31. Ne2 Nf4 $19 )(30. d7 $11 {and White has nothing to worry.} )Qe3 $19 {[%emt 0:4:0]} 31. Qd2 {[%emt 0:1:38]} Nf4 {[%emt 0:0:42][%cal Rf4g2]} 32. Qxe3 {[%emt 0:1:0]} Rxe3 {[%emt 0:0:35][%csl Gf4][%cal Re3e2]} 33. Rf2 {[%emt 0:1:2]} Bd3 {[%emt 0:1:54]} 34. Kd2 {[%emt 0:3:1]} Rxe2+ {[%emt 0:1:23] Black is clearly winning.} 35. Rxe2 {[%emt 0:0:34]} Bxe2 {[%emt 0:0:36]} 36. Rc1 {[%emt 0:0:34]} Rxd6+ {[%emt 0:1:45]} 37. Ke3 {[%emt 0:0:6]} Rd3+ {[%emt 0:1:37]} 38. Ke4 {[%emt 0:1:5]} Bxf3+ {[%emt 0:0:37]} 39. Kxe5 {[%emt 0:0:35] Intending Rc8+ and mate.} Ng6+ {[%emt 0:0:36]} 40. Kf5 {[%emt 0:0:0]} Rd8 {[%emt 0:0:0] Wards off Rc8} 41. Rc7 {[%emt 0:23:56]} Re8 {[%emt 0:20:17]} 42. Rc5 {[%emt 0:0:6] Against Re5+} Be4+ {[%emt 0:2:56]} 43. Kg4 {[%emt 0:0:13]} Ne5+ {[%emt 0:0:3]} 44. Kg3 {[%emt 0:0:17]} Nd3 {[%emt 0:0:3][%csl Yb4,Yc5]} 45. Rc7 {[%emt 0:0:7]} Nxb4 {[%emt 0:0:17]} 46. Bf7 {[%emt 0:0:4]} Rf8 {[%emt 0:0:6] Weighted Error Value: White=0.31/Black=0.08 (flawless)   Loses game:     	White=1     	---        Mistake:       	White=2     	Black=1      Inaccurate:     	White=3     	Black=4      OK:         	White=3     	Black=4      Best:        	White=1     	Black=1      Strong:       	---       	Black=1} 0-1

[Event "88th Tata Steel Masters 2026"]
[White "Nguyen,Thai Dai Van"]
[Black "Gukesh D"]
[Site "Wijk aan Zee"]
[Round "5.7"]
[Annotator "TA"]
[Result "0-1"]
[Date "2026.01.21"]
[WhiteElo "2656"]
[BlackElo "2754"]
[PlyCount "102"]
[TimeControl "60"]

{[%evp 11,101,11,17,28,17,8,9,14,8,6,25,32,27,0,34,16,39,31,58,22,12,0,7,5,5,-20,-25,-19,0,0,0,-2,0,-12,-5,-16,-28,-31,-31,-31,-25,-20,-15,-24,-22,-47,-44,-42,-39,-71,-5,-5,0,0,0,0,0,-4,-9,-278,-265,-264,-273,-270,-273,-275,-170,-302,-301,-325,-328,-293,-300,-262,-224,-295,-293,-285,-287,-261,-254,-266,-258,-338,-316,-376,-376,-556,-556,-604,-604,-657]} 1. d4 {[%emt 0:0:0]} Nf6 {[%emt 0:0:0]} 2. c4 {[%emt 0:0:0]} e6 {[%emt 0:0:0]} 3. Nf3 {[%emt 0:0:0]} b6 {[%emt 0:0:0]} 4. g3 {[%emt 0:0:0]} Ba6 {[%emt 0:0:0]} 5. b3 {[%emt 0:0:0]} d5 {[%emt 0:0:0]} 6. Bg2 {[%emt 0:0:0]} Nbd7 {[%emt 0:0:0]} 7. O-O {[%emt 0:0:0] E15: Queen's Indian: 4 g3 sidelines, 4 g3 Ba6 and 4 g3 Bb7 early deviations.} Rc8 {[%emt 0:0:0]} 8. Nbd2 {[%emt 0:13:26]} Be7 {[%emt 0:0:0]} 9. Bb2 {[%emt 0:0:56] The position is equal.} O-O {[%emt 0:0:0]} 10. Rc1 {[%emt 0:1:52]} Re8 $146 {[%emt 0:0:0]} ({Predecessor:} 10... h6 11. Re1 dxc4 12. Nxc4 Bb7 13. Nfe5 Bxg2 14. Kxg2 c5 15. dxc5 Rxc5 16. Qd3 b5 17. Nxd7 Nxd7 {½-½ Coklin,M (2477)-Daubenfeld,N (2513) WLS Inv9 email 2021} )11. Re1 {[%emt 0:3:51]} Bb7 {[%emt 0:0:0]} 12. e3 {[%emt 0:6:0]} c5 {[%emt 0:0:0] The position is symmetric and equal} 13. Qe2 {[%emt 0:4:17]} a5 {[%emt 0:13:56]} 14. Red1 {[%emt 0:5:47]} Qc7 {[%emt 0:6:46]} 15. h4 {[%emt 0:4:55]} Bd6 {[%emt 0:3:47]} 16. Nb1 {[%emt 0:5:25]} dxc4 {[%emt 0:7:34]} 17. bxc4 {[%emt 0:5:36]} cxd4 {[%emt 0:3:26]} 18. exd4 {[%emt 0:20:38]} e5 {[%emt 0:0:40]} 19. dxe5 {[%emt 0:2:7]} Bxf3 {[%emt 0:6:2]} 20. Qxf3 {[%emt 0:2:38]} Nxe5 {[%emt 0:0:38]} 21. Qb7 {[%emt 0:8:18]} Bc5 {[%emt 0:6:23][%cal Yc5f2] [#] and ...Bxf2+! would now be decisive} 22. Qxc7 {[%emt 0:0:42]} Rxc7 {[%emt 0:0:31]} 23. Bxe5 {[%emt 0:4:15]} Rxe5 {[%emt 0:0:33]} 24. Rd8+ {[%emt 0:0:37]} Bf8 {[%emt 0:1:36]} 25. Bf1 {[%emt 0:4:32]} g6 {[%emt 0:8:4]} 26. Nc3 {[%emt 0:0:56]} Kg7 {[%emt 0:2:46]} 27. Rcd1 {[%emt 0:2:47]} Rc6 {[%emt 0:6:22]} 28. Rb8 {[%emt 0:2:29]} Bb4 {[%emt 0:11:24]} 29. Na4 {[%emt 0:3:32]} Ree6 {[%emt 0:1:22]} 30. Rb7 {[%emt 0:1:51]} h5 {[%emt 0:14:12]} (30... Ne4 $17 )31. Rc1 $11 {[%emt 0:2:47]} Ng4 {[%emt 0:13:27]} 32. Bg2 {[%emt 0:2:26]} Be1 {[%emt 0:1:2]} 33. Bxc6 {[%emt 0:1:55]} Bxf2+ {[%emt 0:0:31]} 34. Kg2 {[%emt 0:1:12]} Rxc6 {[%emt 0:0:31]} 35. Rc3 $2 {[%emt 0:1:16][%mdl 8192] [#] Now White is beyond hope.} (35. c5 $11 bxc5 (35... Bxc5 36. Nxc5 bxc5 37. Rc3 $14 )36. Nb2 )Bd4 $19 {[%emt 0:2:51]} 36. Rf3 {[%emt 0:0:42]} Ne5 {[%emt 0:1:6]} 37. Rf4 {[%emt 0:0:34]} Rxc4 {[%emt 0:0:34]} 38. Nxb6 {[%emt 0:0:54]} Rc2+ {[%emt 0:0:31]} 39. Kf1 {[%emt 0:0:34]} (39. Kh1 $142 Be3 40. Rf1 )Be3 {[%emt 0:1:23]} 40. a4 {[%emt 0:0:0]} Bxf4 {[%emt 0:0:0]} 41. gxf4 {[%emt 0:20:11][%mdl 4096] Endgame KRN-KRN. Black is a pawn up.} Nc4 {[%emt 0:34:57]} 42. Nd5 {[%emt 0:3:51]} Rd2 {[%emt 0:1:27]} 43. Nc7 {[%emt 0:1:27]} Kf6 {[%emt 0:3:46]} 44. Rb5 {[%emt 0:14:39]} Ra2 {[%emt 0:0:7]} 45. Nd5+ {[%emt 0:1:46]} Kg7 {[%emt 0:0:41]} 46. f5 {[%emt 0:1:22]} gxf5 {[%emt 0:1:14]} 47. Nf4 {[%emt 0:4:32]} Ne3+ {[%emt 0:0:29]} 48. Kg1 {[%emt 0:0:42]} Rxa4 {[%emt 0:0:10]} 49. Nxh5+ {[%emt 0:0:4]} (49. Ne2 {was called for.} )Kg6 {[%emt 0:1:4] Black is clearly winning.} 50. Ng3 {[%emt 0:0:10]} Ra2 {[%emt 0:0:32]} 51. Kh1 {[%emt 0:1:44]} a4 {[%emt 0:1:42] Weighted Error Value: White=0.30/Black=0.09 (flawless)   Loses game:     	White=1     	---        Mistake:       	White=2     	Black=1      Inaccurate:     	White=5     	Black=3      OK:         	White=5     	Black=5      Best:        	---       	Black=1} 0-1

[Event "88th Tata Steel Masters 2026"]
[White "Bluebaum,Matthias"]
[Black "Erigaisi Arjun"]
[Site "Wijk aan Zee"]
[Round "6.1"]
[Annotator "TA"]
[Result "1/2-1/2"]
[Date "2026.01.23"]
[WhiteElo "2679"]
[BlackElo "2775"]
[PlyCount "115"]
[TimeControl "60"]

{[%evp 9,114,39,33,33,42,33,43,33,40,40,40,40,41,40,42,45,49,40,41,49,42,47,49,43,52,0,0,6,20,10,12,12,18,13,9,20,24,-31,68,75,63,82,75,72,64,64,62,66,76,66,344,347,335,318,322,204,205,3,6,0,712,736,661,324,394,84,88,53,60,45,40,47,55,53,51,35,35,11,20,11,12,14,18,0,23,0,0,0,0,0,0,0,0,0,0,0,8,8,8,0,0,8,8,8,8,8,8]} 1. d4 {[%emt 0:0:0]} d6 {[%emt 0:0:0]} 2. Nf3 {[%emt 0:0:0]} Nf6 {[%emt 0:0:0]} 3. c4 {[%emt 0:0:0]} g6 {[%emt 0:0:0]} 4. Nc3 {[%emt 0:0:0]} Bf5 {[%emt 0:0:0]} 5. Qb3 {[%emt 0:0:0]} b6 {[%emt 0:0:0]} 6. h3 {[%emt 0:0:0] E61: King's Indian: Early deviations for White, including Smyslov System.} Bg7 {[%emt 0:0:0]} 7. g4 {[%emt 0:0:0]} Bc8 {[%emt 0:0:0]} 8. Bg2 {[%emt 0:0:0] White is slightly better.} O-O {[%emt 0:0:0]} 9. O-O {[%emt 0:0:0]} Bb7 {[%emt 0:0:0]} 10. Qc2 $146 {[%emt 0:0:0]} ({Predecessor:} 10. Rd1 a6 11. Bf4 Nbd7 12. Rac1 c5 13. Bg3 Ne4 14. Nxe4 Bxe4 15. Qe3 Bb7 16. b3 cxd4 17. Nxd4 Bxg2 18. Kxg2 {0-1 Samadov,R (2456)-Kadric,D (2535) Wch Blitz op 2025 (16)} )Nbd7 {[%emt 0:0:0]} 11. Rd1 {[%emt 0:0:0]} Qc8 {[%emt 0:0:0]} 12. e4 {[%emt 0:1:47]} e5 {[%emt 0:3:36]} 13. d5 {[%emt 0:1:27]} h5 {[%emt 0:8:26]} 14. g5 {[%emt 0:0:39]} Nh7 {[%emt 0:0:35]} 15. Be3 {[%emt 0:4:50]} Qd8 {[%emt 0:5:17]} 16. b4 {[%emt 0:5:17]} Bc8 {[%emt 0:1:16]} 17. Rac1 {[%emt 0:7:46]} (17. Qe2 $14 )f6 $1 $11 {[%emt 0:1:25]} 18. gxf6 {[%emt 0:3:59]} Bxf6 {[%emt 0:1:4]} 19. Qd2 {[%emt 0:5:20]} Rf7 {[%emt 0:2:55]} 20. Kh1 $36 {[%emt 0:8:59][%mdl 2048] White has good play.} Ndf8 {[%emt 0:22:14]} 21. c5 {[%emt 0:13:30]} g5 {[%emt 0:1:3]} 22. Nh2 {[%emt 0:4:45]} Ng6 {[%emt 0:7:26]} 23. Bf3 {[%emt 0:4:12] [#]} (23. Rg1 $11 )g4 {[%emt 0:3:47]} 24. hxg4 $14 {[%emt 0:1:56][%cal Yh3g4,Yg4h5,Yh5g6][%mdl 32]} Ng5 {[%emt 0:1:12]} 25. gxh5 {[%emt 0:8:19]} Nxf3 {[%emt 0:0:46]} 26. Nxf3 {[%emt 0:0:32]} Bg4 {[%emt 0:0:41][%csl Yf3,Yh5]} 27. hxg6 {[%emt 0:8:53]} Bxf3+ {[%emt 0:1:50]} 28. Kh2 {[%emt 0:0:32]} Rg7 {[%emt 0:11:25]} 29. Rg1 {[%emt 0:1:41] Hoping for Bh6.} Bh5 $2 {[%emt 0:0:41][%mdl 8192]} (29... Qe8 $14 )30. cxd6 $18 {[%emt 0:9:27]} cxd6 {[%emt 0:1:10] [#]} 31. Nb5 $1 {[%emt 0:2:27]} Qd7 {[%emt 0:13:45]} 32. Rc6 {[%emt 0:1:55]} Rxg6 {[%emt 0:1:41]} 33. Rxd6 $2 {[%emt 0:3:24]} (33. Nxd6 $2 Rxg1 34. Nf5 (34. Kxg1 $2 Qg4+ 35. Kh2 Qh4+ 36. Kg2 Kh8 $19 )Rg6 $19 )(33. Rxg6+ $18 Bxg6 34. f3 (34. Rxd6 Qg4 $11 )Qh7+ 35. Kg1 )Qf7 $1 $11 {[%emt 0:3:28]} 34. Bg5 {[%emt 0:1:33]} Bg7 {[%emt 0:1:18][%mdl 8192]} (34... Qh7 $11 35. Rg3 (35. Rxf6 Rxf6 36. Rg3 Rf3 $11 )Bf3+ 36. Bh6 Rxg3 37. fxg3 Rf8 )35. Rxg6 $18 {[%emt 0:2:33]} Bxg6 {[%emt 0:0:36]} 36. Bh4 {[%emt 0:2:50]} (36. Nd6 $142 Qf3 37. Rg3 Qh5+ 38. Kg2 )Bxe4 {[%emt 0:1:51]} 37. Qg5 $2 {[%emt 0:4:59]} (37. Qe3 $18 {is more deadly.} Bh7 (37... Bxd5 $2 {too greedy.} 38. Nd6 $18 )38. Nc7 )Rf8 $16 {[%emt 0:1:17]} 38. Nd6 {[%emt 0:4:24] Dancing on a razor blade. White is more active.} ({Of course not} 38. Qxe5 Qf4+ 39. Qxf4 Rxf4 $11 )Qf4+ {[%emt 0:0:35]} 39. Qxf4 {[%emt 0:1:16]} Rxf4 {[%emt 0:0:35]} 40. Bg3 {[%emt 0:0:0]} Rg4 {[%emt 0:0:0]} 41. Nxe4 {[%emt 0:33:17]} Rxe4 $14 {[%emt 0:20:17][%mdl 4096] Endgame KRB-KRB. White is a pawn up.} 42. Rc1 {[%emt 0:0:21]} Rxb4 {[%emt 0:4:28]} 43. Rc8+ {[%emt 0:2:9]} Kf7 {[%emt 0:4:18]} 44. Rc7+ {[%emt 0:0:52]} Kg6 {[%emt 0:1:16]} 45. Rxa7 {[%emt 0:2:41]} Bf6 {[%emt 0:1:36]} 46. a4 {[%emt 0:5:34]} Kf5 {[%emt 0:1:37]} 47. Kg2 {[%emt 0:2:35]} Rd4 {[%emt 0:1:11] The position is equal.} 48. a5 {[%emt 0:1:45]} bxa5 {[%emt 0:0:59]} 49. Rxa5 {[%emt 0:0:11]} Bh4 {[%emt 0:2:18]} 50. Bxh4 {[%emt 0:2:37]} Rxh4 $11 {[%emt 0:0:5] KR-KR. White is a pawn up.} 51. Ra8 {[%emt 0:0:27]} Rd4 {[%emt 0:0:33]} 52. Rd8 {[%emt 0:0:6]} e4 {[%emt 0:0:56]} 53. d6 {[%emt 0:1:41]} Ke6 {[%emt 0:1:18]} 54. Kg3 {[%emt 0:0:14]} Rxd6 {[%emt 0:0:42]} 55. Rxd6+ {[%emt 0:0:3]} Kxd6 {[%emt 0:0:5]} 56. Kf4 {[%emt 0:0:3]} Kd5 {[%emt 0:0:5]} 57. f3 {[%emt 0:0:4]} exf3 {[%emt 0:0:4]} 58. Kxf3 {[%emt 0:0:2] Weighted Error Value: White=0.33/Black=0.30   Loses game:     	---       	Black=2      Missed win:     	White=1     	---        Mistake:       	White=2     	Black=1      Inaccurate:     	White=2     	---        OK:         	White=6     	Black=10     Best:        	White=1     	---        Strong:       	White=1     	Black=2} 1/2-1/2